bitfinex-derivatives/quotes_ETHF0:USTF0_20250410
["timestamp","ask_amount","ask_price","bid_price","bid_amount"]
[1744289685154,1.25722,1591.8,1591.6,9.09431]
[1744289685458,1.25705,1592.0,1591.8,1.25716]
[1744289685760,9.3417,1591.9,1591.8,1.25716]
[1744289686952,10.59878,1591.9,1591.7,4.46498]
[1744289687456,9.3417,1591.9,1591.6,9.09432]
[1744289687662,10.5988,1591.9,1591.7,4.46501]
[1744289687958,1.25716,1591.8,1591.7,3.2078]
[1744289688150,9.3417,1591.9,1591.8,1.25716]
[1744289690858,3.14195,1592.3,1591.7,12.5997]
[1744289691060,1.25703,1592.0,1591.9,3.2078]
[1744289691358,1.25713,1591.9,1591.7,13.85689]
[1744289691658,1.25716,1591.8,1591.7,13.85689]
[1744289691863,1.25716,1591.8,1591.7,4.46504]
[1744289692166,1.25701,1592.0,1591.7,3.2078]
[1744289692366,1.25701,1592.0,1591.9,4.46483]
[1744289692564,1.25698,1592.1,1591.9,4.46483]
[1744289692762,1.25699,1592.1,1591.9,3.2078]
[1744289692957,1.25699,1592.1,1591.9,4.46482]
[1744289693361,1.25701,1592.0,1591.9,4.46482]
[1744289693769,1.25701,1592.0,1591.9,3.2078]
[1744289693973,1.25708,1591.9,1591.6,11.0448]
[1744289694166,1.25716,1591.8,1591.7,1.25724]
[1744289694371,1.25696,1592.1,1592.0,1.25697]
[1744289695258,10.92021,1592.2,1592.1,1.25693]
[1744289695461,1.25691,1592.2,1592.1,1.25693]
[1744289695870,10.58703,1592.3,1592.2,1.25685]
[1744289696570,4.6304,1592.3,1592.2,1.25685]
[1744289696762,42.05667,1592.5,1592.4,1.25669]
[1744289696963,40.8,1592.5,1592.4,4.46449]
[1744289697165,42.05661,1592.5,1592.4,1.25669]
[1744289697365,40.8,1592.5,1592.4,1.25669]
[1744289697565,42.05661,1592.5,1592.4,4.46449]
[1744289697766,10.58676,1592.6,1592.5,1.25661]
[1744289698266,51.38673,1592.6,1592.5,1.25661]
[1744289698476,50.1302,1592.6,1592.5,1.25661]
[1744289698672,1.25652,1592.7,1592.6,1.25653]
[1744289698869,3.2078,1593.0,1592.5,9.2569]
[1744289699076,1.2565,1592.7,1592.6,1.25651]
[1744289699270,1.25645,1592.8,1592.6,3.2078]
[1744289699471,1.25645,1592.8,1592.7,1.25645]
[1744289699670,40.8,1592.9,1592.8,1.25637]
[1744289699869,40.8,1592.9,1592.8,4.46417]
[1744289700172,40.8,1592.9,1592.8,12.26717]
[1744289700361,9.943,1593.1,1592.8,12.26717]
[1744289700362,11.1992,1593.1,1592.9,1.25629]
[1744289700564,11.19914,1593.1,1593.0,3.2078]
[1744289700766,40.8,1593.1,1593.0,3.2078]
[1744289700967,1.2559,1593.4,1593.0,15.60521]
[1744289701169,10.94307,1593.5,1593.3,1.25598]
[1744289701370,40.8,1593.4,1593.3,1.25598]
[1744289701578,42.0559,1593.4,1593.3,9.2569]
[1744289701779,40.8,1593.4,1593.3,10.51288]
[1744289701977,42.0559,1593.4,1593.3,9.2569]
[1744289702278,1.25598,1593.3,1593.2,12.27527167]
[1744289702679,42.05596,1593.4,1593.2,12.27527167]
[1744289702979,1.25598,1593.3,1593.2,3.21724167]
[1744289703169,1.25598,1593.3,1593.2,0.00944167]
[1744289703478,6.25598,1593.3,1593.2,1.67e-06]
[1744289704373,1.25645,1592.7,1592.6,7.802]
[1744289704578,1.25661,1592.5,1592.4,3.2078]
[1744289704782,3.14142,1592.6,1592.2,11.0098]
[1744289705072,1.25677,1592.3,1592.2,11.0098]
[1744289705275,1.25677,1592.3,1592.2,7.802]
[1744289705468,8.22204,1592.5,1592.1,95.793]
[1744289705469,8.22204,1592.5,1592.1,3.2078]
[1744289705672,1.26619167,1592.4,1592.1,3.21724167]
[1744289705973,1.25685,1592.2,1592.1,0.00944167]
[1744289706774,4.6482,1592.3,1592.1,3.21724167]
[1744289707075,1.25685,1592.2,1592.1,0.00944167]
[1744289707471,42.05685,1592.2,1592.1,0.00944167]
[1744289708478,40.8,1592.2,1592.1,1.26637167]
[1744289708679,42.05685,1592.2,1592.1,0.00944167]
[1744289709377,1.26617167,1592.4,1592.3,1.25677]
[1744289709578,1.25685,1592.2,1592.1,9.01344167]
[1744289709875,40.8,1592.2,1592.1,1.26637167]
[1744289710071,40.8,1592.2,1592.1,4.47417167]
[1744289710272,42.05685,1592.2,1592.1,4.47417167]
[1744289710472,40.8,1592.2,1592.1,4.47417167]
[1744289710774,9.4692,1592.3,1592.2,1.25685]
[1744289710979,0.00944167,1592.4,1592.3,1.25677]
[1744289711179,0.00944167,1592.4,1592.3,12.26657]
[1744289711380,0.00944167,1592.4,1592.3,17.26657]
[1744289712581,0.00944167,1592.4,1592.3,11.0098]
[1744289712881,0.00944167,1592.4,1592.3,17.26657]
[1744289714179,0.00944167,1592.4,1592.3,113.05957]
[1744289715575,1.67e-06,1592.4,1592.3,113.05957]
[1744289716171,9.69841731,1593.0,1592.9,1.25629]
[1744289716378,9.69841731,1593.0,1592.9,12.26609]
[1744289716975,9.69841731,1593.0,1592.9,21.96299]
[1744289717175,8.34538731,1593.0,1592.9,26.96299]
[1744289717579,8.34538731,1593.0,1592.9,21.96299]
[1744289717785,12.1354727,1593.2,1592.9,20.7067]
[1744289717786,8.62538907,1593.2,1592.9,20.7067]
[1744289718083,7.36932907,1593.2,1593.1,4.46394]
[1744289719174,7.36932907,1593.2,1593.1,14.16084]
[1744289721183,1.25614,1593.1,1593.0,0.00944167]
[1744289721385,10.22174,1593.1,1593.0,1.26566167]
[1744289721589,10.22174,1593.1,1593.0,0.00944167]
[1744289722380,19.95044,1593.1,1593.0,0.00944167]
[1744289722979,55.75044,1593.1,1593.0,0.00944167]
[1744289723485,60.75044,1593.1,1593.0,0.00944167]
[1744289724188,1.25653,1592.6,1592.5,1.25661]
[1744289724579,1.25661,1592.5,1592.4,3.2078]
[1744289724780,1.25669,1592.4,1592.3,95.793]
[1744289724980,10.19739,1592.4,1592.3,95.793]
[1744289725282,1.25677,1592.3,1592.2,26.89404913]
[1744289725684,8.9407,1592.4,1592.3,1.25677]
[1744289725685,10.19743,1592.4,1592.3,1.25677]
[1744289725885,0.00944167,1592.5,1592.4,1.25669]
[1744289726094,10.21425167,1592.5,1592.4,3.2078]
[1744289726287,1.25677,1592.3,1592.2,25.63726913]
[1744289726479,1.25677,1592.3,1592.2,14.66546913]
[1744289726687,6.25677,1592.3,1592.2,14.66546913]
[1744289726885,1.25677,1592.3,1592.2,14.66546913]
[1744289727087,8.95764167,1592.5,1592.3,1.25677]
[1744289727294,1.25677,1592.3,1592.2,14.66546913]
[1744289727494,1.25674,1592.4,1592.2,14.66546913]
[1744289727793,1.25674,1592.4,1592.3,1.25674]
[1744289728293,1.26610167,1592.5,1592.4,1.25669]
[1744289728485,1.25672,1592.4,1592.3,1.25672]
[1744289728686,1.25677,1592.3,1592.2,1.26622167]
[1744289729387,1.25677,1592.3,1592.2,0.00944167]
[1744289730093,6.25677,1592.3,1592.2,0.00944167]
[1744289730297,1.25724,1591.7,1591.6,3.2078]
[1744289730602,3.2078,1592.1,1591.6,3.2078]
[1744289730793,1.25708,1591.9,1591.8,3.2078]
[1744289731090,42.05708,1591.9,1591.8,3.2078]
[1744289731292,1.25724,1591.7,1591.6,4.46508]
[1744289731500,1.2574,1591.5,1591.4,3.2078]
[1744289731796,1.25728,1591.7,1591.6,1.25732]
[1744289731993,40.8,1591.9,1591.8,1.25716]
[1744289732291,40.8,1591.9,1591.8,4.46496]
[1744289732595,1.25716,1591.8,1591.7,9.0365]
[1744289732797,1.25732,1591.6,1591.5,0.00944167]
[1744289734085,5.98137,1591.7,1591.5,0.00944167]
[1744289734389,1.25724,1591.7,1591.6,3.2078]
[1744289735691,50.7929,1591.9,1591.6,3.2078]
[1744289735897,1.25724,1591.7,1591.6,4.4651]
[1744289736089,46.98691,1591.9,1591.8,1.25716]
[1744289736396,46.98691,1591.9,1591.6,3.2078]
[1744289736397,46.98691,1591.9,1591.7,10.09168]
[1744289736593,1.25716,1591.8,1591.7,8.8345]
[1744289737094,45.7298,1591.9,1591.8,1.25716]
[1744289737395,42.05708,1591.9,1591.8,3.2078]
[1744289737591,43.94285,1591.9,1591.6,3.2078]
[1744289737792,1.25724,1591.7,1591.6,3.2078]
[1744289738191,1.25723,1591.8,1591.6,3.2078]
[1744289738389,1.25724,1591.7,1591.6,3.2078]
[1744289739191,42.0571,1591.9,1591.8,1.25716]
[1744289739495,42.0571,1591.9,1591.8,4.46496]
[1744289739699,40.8,1591.9,1591.8,4.46496]
[1744289740200,42.05708,1591.9,1591.8,3.2078]
[1744289740792,42.05708,1591.9,1591.8,4.46496]
[1744289741002,49.9928,1591.9,1591.8,4.46496]
[1744289741194,51.24988,1591.9,1591.8,4.46496]
[1744289741898,49.9928,1591.9,1591.8,4.46496]
[1744289742098,40.8,1591.9,1591.8,4.46496]
[1744289742894,42.05708,1591.9,1591.8,4.46496]
[1744289743092,0.00944167,1592.0,1591.9,1.25708]
[1744289743396,0.00944167,1592.0,1591.9,18.04158]
[1744289745393,1.26645167,1592.0,1591.9,18.04158]
[1744289745589,1.25708,1591.9,1591.8,3.2078]
[1744289745800,10.23818,1591.9,1591.8,3.2078]
[1744289746202,10.23818,1591.9,1591.6,3.2078]
[1744289746203,17.12397,1591.9,1591.6,3.2078]
[1744289746401,1.25732,1591.6,1591.5,0.00944167]
[1744289747899,6.25732,1591.6,1591.5,0.00944167]
[1744289749706,1.25732,1591.6,1591.5,4.47461167]
[1744289749898,1.25732,1591.6,1591.5,3.21724167]
[1744289750293,1.25732,1591.6,1591.5,4.47464167]
[1744289750802,1.25732,1591.6,1591.5,3.21724167]
[1744289751205,1.25732,1591.6,1591.5,4.47464167]
[1744289751705,1.25732,1591.6,1591.5,3.21724167]
[1744289751903,1.25732,1591.6,1591.5,0.00944167]
[1744289752208,1.25732,1591.6,1591.5,3.21724167]
[1744289752506,1.25732,1591.6,1591.5,0.00944167]
[1744289752707,1.25732,1591.6,1591.5,1.26684167]
[1744289752906,1.25732,1591.6,1591.5,0.00944167]
[1744289756507,6.25732,1591.6,1591.5,0.00944167]
[1744289757911,1.25732,1591.6,1591.5,0.00944167]
[1744289760719,1.25732,1591.6,1591.5,4.47464167]
[1744289760911,10.85172,1591.6,1591.5,4.47464167]
[1744289762017,1.25732,1591.6,1591.5,4.47464167]
[1744289762317,1.25732,1591.6,1591.5,3.21724167]
[1744289762505,1.25732,1591.6,1591.5,4.47464167]
[1744289762915,1.25732,1591.6,1591.5,3.21724167]
[1744289763413,10.86332,1591.6,1591.5,0.00944167]
[1744289763815,19.07112,1591.6,1591.5,1.67e-06]
[1744289764220,1.2578,1591.0,1590.9,12.6254]
[1744289764926,48.94467,1591.0,1590.6,3.2078]
[1744289765227,1.25819,1590.5,1590.4,14.23134271]
[1744289765826,1.25819,1590.5,1590.4,22.30077271]
[1744289766331,1.25819,1590.5,1590.4,9.76527271]
[1744289766630,6.21969,1590.5,1590.4,9.76527271]
[1744289767032,15.38619,1590.5,1590.4,9.76527271]
[1744289768524,15.38619,1590.5,1590.3,0.00944167]
[1744289768525,1.25827,1590.4,1590.3,0.00944167]
[1744289768729,15.89547,1590.4,1590.3,0.00944167]
[1744289770325,24.10327,1590.4,1590.3,0.00944167]
[1744289770526,15.89547,1590.4,1590.3,0.00944167]
[1744289770933,15.89547,1590.4,1590.3,3.21724167]
[1744289771729,1.25827,1590.4,1590.3,3.21724167]
[1744289772035,1.25817,1590.6,1590.3,15.95424167]
[1744289772333,1.25809,1590.7,1590.6,1.25811]
[1744289772726,1.25803,1590.7,1590.6,1.25811]
[1744289772926,1.25811,1590.6,1590.5,3.2078]
[1744289773726,1.25811,1590.6,1590.5,4.46599]
[1744289774133,1.25811,1590.6,1590.5,3.2078]
[1744289774333,1.25811,1590.6,1590.5,4.46599]
[1744289774737,8.62739907,1590.7,1590.6,1.25811]
[1744289775033,7.36932907,1590.7,1590.6,1.25811]
[1744289776632,7.36932907,1590.7,1590.6,6.25811]
[1744289777336,7.36932907,1590.7,1590.6,1.25811]
[1744289777535,7.36932907,1590.7,1590.5,3.2078]
[1744289777736,1.25811,1590.6,1590.5,3.2078]
[1744289778031,1.25801,1590.8,1590.6,1.25811]
[1744289778237,1.25801,1590.8,1590.7,3.2078]
[1744289778439,1.25787,1590.9,1590.8,1.25794]
[1744289778737,1.25789,1590.9,1590.7,12.16276]
[1744289778939,1.25789,1590.9,1590.7,10.9048]
[1744289779138,1.25795,1590.8,1590.7,10.9048]
[1744289780434,1.25795,1590.8,1590.7,7.697]
[1744289780838,1.25795,1590.8,1590.7,8.95503]
[1744289781039,1.25795,1590.8,1590.7,12.16283]
[1744289781239,1.25795,1590.8,1590.7,10.9048]
[1744289781438,1.25794,1590.9,1590.7,12.16276]
[1744289781630,1.25794,1590.9,1590.8,1.25795]
[1744289782141,49.93954167,1591.0,1590.7,10.9048]
[1744289782436,42.06728167,1591.0,1590.9,1.25787]
[1744289782741,40.80944167,1591.0,1590.9,4.46567]
[1744289783740,0.00944167,1591.0,1590.9,4.46567]
[1744289785443,1.26724167,1591.0,1590.9,4.46567]
[1744289785938,0.00944167,1591.0,1590.9,4.46567]
[1744289786941,0.00944167,1591.0,1590.9,9.46567]
[1744289787138,0.00944167,1591.0,1590.9,4.46567]
[1744289789744,40.8,1591.4,1591.3,1.25756]
[1744289790245,42.05748,1591.4,1591.3,1.25756]
[1744289790447,40.8,1591.4,1591.2,10.9038]
[1744289790647,42.05753,1591.4,1591.3,10.19326]
[1744289790946,40.8,1591.4,1591.3,10.19326]
[1744289791752,42.05748,1591.4,1591.3,10.19326]
[1744289792949,1.25756,1591.3,1591.2,7.70544167]
[1744289793144,11.06296,1591.3,1591.2,7.70544167]
[1744289793540,16.06296,1591.3,1591.2,0.00944167]
[1744289793941,18.0132,1591.3,1590.6,9.12923]
[1744289794145,1.25795,1590.8,1590.7,8.9742]
[1744289794649,1.25815,1590.6,1590.5,1.25814]
[1744289794839,12.95025,1590.9,1590.5,1.25814]
[1744289794840,11.0635,1590.7,1590.6,1.25811]
[1744289795453,8.26195,1590.9,1590.8,1.25795]
[1744289795454,6.375,1590.9,1590.8,1.25795]
[1744289795649,14.9225,1590.9,1590.8,1.25795]
[1744289795853,1.25777,1591.1,1591.0,1.25776]
[1744289796055,1.2578,1591.0,1590.9,11.03712]
[1744289796259,1.2578,1591.0,1590.9,9.7793]
[1744289796446,1.2578,1591.0,1590.9,11.03717]
[1744289796747,10.1641,1591.2,1591.1,1.25772]
[1744289797554,8.9064,1591.2,1591.1,11.03702]
[1744289797743,1.25759,1591.3,1591.2,1.25764]
[1744289797944,10.16399,1591.3,1591.2,4.46544]
[1744289798951,1.25772,1591.1,1591.0,4.46552]
[1744289799139,1.2578,1591.0,1590.9,11.00201]
[1744289799345,1.2578,1591.0,1590.9,1.25787]
[1744289799546,1.2578,1591.0,1590.9,11.00207]
[1744289799752,11.07719,1591.1,1591.0,1.2578]
[1744289801047,45.8478,1591.4,1591.3,1.25756]
[1744289801351,4.88929506,1591.5,1591.4,1.25748]
[1744289801553,1.25748,1591.4,1591.3,1.2575]
[1744289801750,6.14676506,1591.5,1591.4,1.25748]
[1744289801951,6.14676506,1591.5,1591.4,10.49668]
[1744289802152,6.14676506,1591.5,1591.4,9.2392]
[1744289802749,6.14676506,1591.5,1591.4,10.49668]
[1744289803149,6.14676506,1591.5,1591.4,9.2392]
[1744289803855,1.25748,1591.4,1591.3,4.46529]
[1744289804058,10.31628,1591.4,1591.3,3.2078]
[1744289804247,1.25756,1591.3,1591.2,7.696]
[1744289804559,1.2578,1591.0,1590.9,21.40082]
[1744289805059,10.31651,1591.2,1591.1,1.25772]
[1744289805351,1.25764,1591.2,1591.1,3.2078]
[1744289805555,1.25764,1591.2,1591.1,4.46547]
[1744289805958,10.15802,1591.3,1591.2,1.25764]
[1744289806259,10.15802,1591.3,1591.1,3.2078]
[1744289806260,1.25764,1591.2,1591.1,3.2078]
[1744289807558,1.25772,1591.1,1591.0,10.88439]
[1744289808361,1.25772,1591.1,1591.0,9.6266]
[1744289808657,1.25772,1591.1,1591.0,10.8844]
[1744289809360,1.2577,1591.2,1591.1,1.25766]
[1744289809558,1.2577,1591.2,1591.1,4.46546]
[1744289809860,1.2577,1591.2,1591.1,4.46552]
[1744289810256,1.2577,1591.2,1591.1,3.2078]
[1744289810458,1.2578,1591.0,1590.9,10.9038]
[1744289810661,1.2578,1591.0,1590.9,12.16167]
[1744289812259,10.4083,1591.0,1590.9,10.9038]
[1744289812659,10.4083,1591.0,1590.9,12.16167]
[1744289813159,0.00944167,1591.5,1590.9,12.16167]
[1744289813357,1.25756,1591.3,1591.2,4.4654]
[1744289813557,1.25756,1591.3,1591.2,3.2078]
[1744289813970,6.13741339,1591.3,1591.2,3.2078]
[1744289814264,15.44621339,1591.3,1591.2,3.2078]
[1744289814864,15.44621339,1591.3,1591.2,4.46544]
[1744289816763,15.44621339,1591.3,1591.2,3.2078]
[1744289817065,1.25772,1591.1,1591.0,13.86887]
[1744289817462,1.25772,1591.1,1591.0,13.8689]
[1744289817961,1.25772,1591.1,1591.0,12.6111]
[1744289818156,1.2578,1591.0,1590.9,7.696]
[1744289818357,10.8066,1591.0,1590.9,8.95387]
[1744289818558,8.21392,1591.2,1591.0,1.25777]
[1744289818759,1.25778,1591.1,1591.0,4.46557]
[1744289819063,10.8065,1591.2,1591.1,1.25772]
[1744289820668,1.25761,1591.3,1591.2,1.25759]
[1744289820969,9.0162,1591.3,1591.2,4.46539]
[1744289821268,1.25752,1591.4,1591.3,1.25756]
[1744289821466,10.27372,1591.4,1591.3,9.8302]
[1744289821767,10.27372,1591.4,1591.3,11.08776]
[1744289822170,10.27372,1591.4,1591.3,9.8302]
[1744289822364,1.25756,1591.3,1591.2,4.46537]
[1744289822559,1.25756,1591.3,1591.2,3.2078]
[1744289822758,1.2578,1591.1,1591.0,3.2078]
[1744289823360,3.14469,1591.0,1590.8,3.2078]
[1744289823565,9.4032,1590.9,1590.8,3.2078]
[1744289823764,10.66107,1590.9,1590.8,3.2078]
[1744289823964,1.25795,1590.8,1590.7,10.40075]
[1744289825569,9.9626,1591.1,1590.7,9.1428]
[1744289825773,1.25782,1591.0,1590.9,4.4656]
[1744289825959,1.25782,1591.0,1590.9,12.3506]
[1744289826162,10.35532,1591.0,1590.9,3.2078]
[1744289826371,1.25795,1590.8,1590.7,12.5567]
[1744289826573,1.25795,1590.8,1590.7,13.81473]
[1744289827070,1.25793,1590.9,1590.8,1.25795]
[1744289827269,11.05468828,1591.1,1591.0,1.2578]
[1744289827469,11.05468828,1591.1,1591.0,4.4656]
[1744289827665,9.79690828,1591.1,1591.0,17.1186]
[1744289828068,9.79690828,1591.1,1591.0,26.4675]
[1744289831077,4.91658353,1591.1,1591.0,26.4675]
[1744289831961,4.90714018,1591.1,1591.0,26.4675]
[1744289832271,4.90714018,1591.1,1591.0,26.97234413]
[1744289832877,4.90714018,1591.1,1591.0,27.60114413]
[1744289834378,3.51420018,1591.1,1591.0,27.60114413]
[1744289834578,2.19185018,1591.1,1591.0,27.60114413]
[1744289835982,0.93176018,1591.1,1591.0,27.60114413]
[1744289836180,0.00944167,1591.5,1591.4,1.25748]
[1744289836376,0.00944167,1591.5,1591.4,12.11628]
[1744289836874,0.00944167,1591.5,1591.4,21.83848]
[1744289838980,1.26684167,1591.5,1591.4,21.83848]
[1744289839184,0.00944167,1591.5,1591.4,21.83848]
[1744289841784,1.67e-06,1591.5,1591.4,122.67948]
[1744289841985,7.37487529,1591.9,1591.8,1.25716]
[1744289842172,6.02997529,1591.9,1591.8,12.07196]
[1744289842385,6.02997529,1591.9,1591.8,17.07196]
[1744289843075,6.02997529,1591.9,1591.8,26.79646]
[1744289843380,4.60472529,1591.9,1591.8,26.79646]
[1744289843682,1.31874529,1591.9,1591.8,26.79646]
[1744289843884,5.29e-06,1591.9,1591.8,26.79646]
[1744289844576,6.96e-06,1592.0,1591.9,1.25708]
[1744289844782,6.96e-06,1592.0,1591.9,10.26768]
[1744289844983,6.96e-06,1592.0,1591.9,15.26768]
[1744289845785,6.96e-06,1592.0,1591.9,15.73428756]
[1744289846184,8.30434524,1592.1,1592.0,4.46481]
[1744289846380,6.90057524,1592.1,1592.0,13.47541]
[1744289846586,6.90057524,1592.1,1592.0,18.47541]
[1744289846587,5.55374524,1592.1,1592.0,18.47541]
[1744289846780,10.53554524,1592.8,1592.0,17.2184]
[1744289846975,20.29694524,1592.8,1592.7,1.25645]
[1744289847187,5.55374524,1592.8,1592.7,8.86145]
[1744289847389,5.55374524,1592.8,1592.7,17.87205]
[1744289849576,5.55374524,1592.8,1592.7,7.605]
[1744289849577,11.81011524,1592.8,1592.7,7.605]
[1744289849773,16.85681524,1592.8,1592.7,7.605]
[1744289849977,10.60044524,1592.8,1592.7,8.86145]
[1744289850379,11.85681524,1592.8,1592.7,8.86145]
[1744289850572,10.60044524,1592.8,1592.7,8.86145]
[1744289850876,10.60044524,1592.8,1592.7,17.76595]
[1744289851277,10.60044524,1592.8,1592.7,8.86145]
[1744289851479,5.0467,1592.8,1592.7,8.86145]
[1744289852286,6.30307,1592.8,1592.7,7.605]
[1744289852488,11.30307,1592.8,1592.7,7.605]
[1744289852791,10.0467,1592.8,1592.7,8.86145]
[1744289852985,5.0467,1592.8,1592.7,8.86145]
[1744289853294,5.0467,1592.8,1592.7,17.76595]
[1744289853795,5.0467,1592.8,1592.7,8.86145]
[1744289855185,9.21834167,1592.9,1592.8,1.25637]
[1744289855392,9.21834167,1592.9,1592.8,4.46417]
[1744289855584,9.21834167,1592.9,1592.8,13.67347]
[1744289855784,0.00944167,1592.9,1592.8,13.67347]
[1744289856293,0.00944167,1592.9,1592.8,4.46417]
[1744289856496,9.21324167,1592.9,1592.8,4.46417]
[1744289856689,10.46953167,1592.9,1592.8,3.2078]
[1744289857083,15.46953167,1592.9,1592.8,4.46417]
[1744289857888,9.21324167,1592.9,1592.8,4.46417]
[1744289859893,10.46953167,1592.9,1592.8,4.46417]
[1744289860087,9.21324167,1592.9,1592.8,3.2078]
[1744289860288,9.21324167,1592.9,1592.8,4.46417]
[1744289861093,10.46953167,1592.9,1592.8,4.46417]
[1744289861495,9.21324167,1592.9,1592.8,4.46417]
[1744289862290,15.46953167,1592.9,1592.8,3.2078]
[1744289862889,1.25645,1592.7,1592.6,0.00944167]
[1744289863296,6.25645,1592.7,1592.6,0.00944167]
[1744289863494,6.25645,1592.7,1592.4,4.46444]
[1744289863495,1.25661,1592.5,1592.4,4.46444]
[1744289864098,15.14893,1592.6,1592.5,1.25661]
[1744289864293,13.8924,1592.6,1592.5,1.25661]
[1744289864691,4.7805,1592.8,1592.7,1.25645]
[1744289864896,13.7255,1592.8,1592.7,12.06425]
[1744289865802,5.02864167,1592.9,1592.8,1.25637]
[1744289865803,0.00944167,1592.9,1592.8,1.25637]
[1744289866103,0.00944167,1592.9,1592.8,8.85637]
[1744289866292,10.55433167,1592.9,1592.8,7.6]
[1744289866498,15.55433167,1592.9,1592.8,7.6]
[1744289866695,10.55433167,1592.9,1592.8,8.85637]
[1744289866894,9.29804167,1592.9,1592.8,8.85637]
[1744289867407,10.55433167,1592.9,1592.8,8.85637]
[1744289867794,9.29804167,1592.9,1592.8,8.85637]
[1744289867991,9.29804167,1592.9,1592.8,17.85637]
[1744289869496,1.25637,1592.8,1592.7,3.2078]
[1744289869699,1.25659,1592.6,1592.5,3.2078]
[1744289870297,10.37489,1592.6,1592.5,4.46441]
[1744289870604,4.9194,1592.7,1592.6,1.25653]
[1744289870801,6.17585,1592.7,1592.6,10.71073]
[1744289871099,6.17591,1592.7,1592.5,12.01836]
[1744289871296,9.1183,1592.6,1592.5,10.7618]
[1744289871603,10.37483,1592.6,1592.5,10.7618]
[1744289871794,10.37483,1592.6,1592.5,3.2078]
[1744289872000,15.37483,1592.6,1592.5,3.2078]
[1744289872299,9.1183,1592.6,1592.5,4.46441]
[1744289874202,10.37483,1592.6,1592.5,3.2078]
[1744289874894,10.37483,1592.6,1592.5,4.46441]
[1744289876197,10.37483,1592.6,1592.5,1.25661]
[1744289876500,1.25661,1592.5,1592.4,0.00944167]
[1744289876889,15.62251,1592.5,1592.4,0.00944167]
[1744289877202,15.62251,1592.5,1592.0,4.46477]
[1744289877203,1.25699,1592.1,1592.0,4.46477]
[1744289877597,1.25692,1592.2,1592.1,1.2569]
[1744289877901,6.18292,1592.2,1592.1,1.2569]
[1744289878395,1.25693,1592.1,1592.0,0.00944167]
[1744289878599,10.70283,1592.1,1592.0,0.00944167]
[1744289878795,15.70283,1592.1,1592.0,0.00944167]
[1744289879399,57.00598205,1592.1,1592.0,0.00944167]
[1744289879598,56.50283,1592.1,1592.0,0.00944167]
[1744289879911,50.2459,1592.1,1592.0,4.47425167]
[1744289880106,40.8,1592.1,1592.0,4.47425167]
[1744289880303,40.8,1592.1,1592.0,12.03025167]
[1744289880806,6.18285,1592.2,1592.1,1.25693]
[1744289881001,6.18285,1592.2,1592.1,9.633]
[1744289881199,1.25693,1592.1,1592.0,12.03018167]
[1744289881399,10.53833,1592.1,1592.0,10.77324167]
[1744289882205,10.53833,1592.1,1592.0,7.56544167]
[1744289882396,15.53833,1592.1,1592.0,0.00944167]
[1744289882801,15.53833,1592.1,1591.4,29.98181746]
[1744289882802,3.14284,1591.9,1591.4,8.81342]
[1744289883106,1.2574,1591.5,1591.4,7.556]
[1744289883495,50.0814,1591.8,1591.4,7.556]
[1744289883692,9.2814,1591.7,1591.6,1.25732]
[1744289883900,10.53864,1591.7,1591.6,9.6512]
[1744289884101,9.2814,1591.7,1591.6,10.90852]
[1744289884499,10.53864,1591.7,1591.6,10.90852]
[1744289884702,10.53864,1591.7,1591.6,9.6512]
[1744289884901,1.25732,1591.6,1591.5,3.21724167]
[1744289885110,1.25732,1591.6,1591.5,0.00944167]
[1744289885401,9.2814,1591.7,1591.5,4.47464167]
[1744289885606,9.2814,1591.7,1591.6,1.25732]
[1744289885797,40.80944167,1591.8,1591.7,1.25724]
[1744289886003,40.80944167,1591.8,1591.7,4.46504]
[1744289886395,42.06660167,1591.8,1591.7,3.2078]
[1744289886597,51.88540167,1591.8,1591.7,3.2078]
[1744289887208,51.88540167,1591.8,1591.7,4.46504]
[1744289887395,51.88540167,1591.8,1591.7,3.2078]
[1744289887908,51.88540167,1591.8,1591.7,4.46504]
[1744289888509,51.88540167,1591.8,1591.7,3.2078]
[1744289888811,40.80944167,1591.8,1591.7,4.46504]
[1744289889203,42.06660167,1591.8,1591.7,4.46504]
[1744289889508,42.06660167,1591.8,1591.7,3.2078]
[1744289889705,1.25732,1591.6,1591.5,3.21724167]
[1744289890207,1.25732,1591.6,1591.5,4.47464167]
[1744289890409,1.25732,1591.6,1591.5,3.21724167]
[1744289890611,6.04672,1591.6,1591.5,3.21724167]
[1744289891710,6.04672,1591.6,1591.5,4.47464167]
[1744289892210,6.04672,1591.6,1591.5,14.19774167]
[1744289892812,10.48205,1591.7,1591.6,1.25732]
[1744289893110,0.00944167,1591.8,1591.7,1.25724]
[1744289893410,1.26660167,1591.8,1591.7,4.46504]
[1744289893609,0.00944167,1591.8,1591.7,4.46504]
[1744289893806,0.00944167,1591.8,1591.7,14.18834]
[1744289894207,9.8485,1592.3,1591.9,3.14268]
[1744289894413,1.2568,1592.3,1592.1,3.2078]
[1744289894612,9.6704,1592.4,1592.3,1.25677]
[1744289894613,10.92713,1592.4,1592.3,1.25677]
[1744289895113,9.6704,1592.4,1592.3,4.46457]
[1744289895413,10.92709,1592.4,1592.3,3.2078]
[1744289895613,1.2569,1592.2,1592.0,4.46474]
[1744289895805,1.25683,1592.3,1592.0,12.9311]
[1744289896004,1.25685,1592.2,1592.1,10.46939]
[1744289896205,1.25685,1592.2,1592.1,9.2125]
[1744289896514,1.25693,1592.1,1592.0,3.2078]
[1744289896711,10.49103,1592.1,1592.0,4.46481]
[1744289897105,10.49103,1592.1,1592.0,3.2078]
[1744289897306,13.9894,1592.1,1592.0,4.46481]
[1744289898011,15.24633,1592.1,1592.0,3.2078]
[1744289898405,1.25701,1592.0,1591.9,10.46955]
[1744289899010,15.24636,1592.1,1592.0,1.25701]
[1744289899309,15.24636,1592.1,1592.0,4.46481]